bitfinex/quotes_ETHUSD_20241103
["timestamp","ask_amount","ask_price","bid_price","bid_amount"]
[1730646380756,4.12704,2423.1,2422.5,4.12781]
[1730646380935,4.12704,2423.1,2422.3,5.6610252]
[1730646380936,4.1273,2422.9,2422.3,5.6610252]
[1730646381237,4.1273,2422.9,2422.3,0.9827852]
[1730646381392,4.12773,2422.7,2422.3,0.9827852]
[1730646381595,3.0,2423.0,2422.4,0.0825596]
[1730646381793,3.0,2423.0,2422.3,0.9827852]
[1730646382095,7.12722,2423.0,2422.3,5.1110852]
[1730646382317,7.12722,2423.0,2422.3,0.9827852]
[1730646382526,4.12728,2422.9,2422.3,0.9827852]
[1730646382705,3.0,2423.0,2422.3,0.9827852]
[1730646382906,4.12746,2422.8,2422.3,0.9827852]
[1730646383135,4.12746,2422.8,2421.7,0.9867]
[1730646383136,3.0,2422.7,2421.7,0.9867]
[1730646383297,3.0,2422.7,2421.6,0.00682148]
[1730646383298,4.12917,2421.8,2421.6,0.00682148]
[1730646383513,4.12893,2422.0,2421.6,0.00682148]
[1730646383696,4.12857,2422.2,2421.6,0.00682148]
[1730646383697,4.12925,2421.8,2421.6,0.00682148]
[1730646383916,8.25852,2421.8,2421.6,0.00682148]
[1730646384203,4.1289,2422.0,2421.6,0.00682148]
[1730646385446,3.0,2422.1,2421.6,0.00682148]
[1730646385741,3.0,2422.3,2421.8,4.12904]
[1730646385943,4.12826,2422.4,2421.8,4.12904]
[1730646385944,4.12817,2422.4,2421.8,4.12904]
[1730646386242,10.10815,2422.9,2422.3,4.12826]
[1730646386243,4.12729,2422.9,2422.3,4.12826]
[1730646386410,4.12721,2423.0,2422.4,0.08255941]
[1730646386620,5.0,2423.4,2422.5,4.12792]
[1730646386621,4.12687,2423.2,2422.5,4.12792]
[1730646386926,4.12687,2423.2,2422.7,0.9867]
[1730646386927,4.12707,2423.1,2422.7,0.9867]
[1730646387243,4.12706,2423.1,2422.4,0.9867]
[1730646387409,5.0,2423.4,2422.6,4.1277]
[1730646387602,4.12713,2423.0,2422.4,5.11471]
[1730646387913,5.0,2423.4,2422.4,0.9867]
[1730646387914,4.12733,2422.9,2422.4,0.9867]
[1730646388113,5.0,2423.4,2422.4,5.11469]
[1730646388114,4.12703,2423.1,2422.4,5.11469]
[1730646388422,3.0,2423.3,2422.4,5.11469]
[1730646388423,4.12714,2423.0,2422.4,5.11469]
[1730646388643,4.12714,2423.0,2422.4,0.9867]
[1730646388818,4.12728,2422.9,2422.4,0.9867]
[1730646389214,4.1275,2422.8,2422.4,0.9867]
[1730646389403,4.1275,2422.8,2421.9,7.12895]
[1730646389404,4.12807,2422.5,2421.9,4.12898]
[1730646389599,4.12807,2422.5,2421.9,8.25787]
[1730646389941,5.10813,2422.9,2421.7,0.9867]
[1730646389942,4.12839,2422.3,2421.7,9.24514]
[1730646390144,4.12839,2422.3,2421.7,5.11592]
[1730646390497,4.12816,2422.4,2421.8,4.12904]
[1730646390703,4.12892,2422.0,2421.7,0.9867]
[1730646390940,4.12855,2422.2,2421.7,0.9867]
[1730646391143,3.0,2422.4,2421.7,0.9867]
[1730646391144,4.12892,2422.0,2421.7,0.9867]
[1730646391705,4.12859,2422.2,2421.7,0.9867]
[1730646391906,4.12882,2422.0,2421.7,0.9867]
[1730646392431,3.0,2422.4,2421.6,0.00682148]
[1730646392432,4.12908,2421.9,2421.6,0.00682148]
[1730646392631,4.12921,2421.8,2421.3,4.1299]
[1730646392838,4.12908,2421.9,2421.3,4.1299]
[1730646393142,0.9367,2422.3,2421.6,4.1294]
[1730646393143,4.12844,2422.3,2421.6,4.1294]
[1730646393359,4.12858,2422.2,2421.6,4.1294]
[1730646393641,4.12844,2422.3,2421.7,4.21184707]
[1730646393808,4.12857,2422.2,2421.7,0.08257707]
[1730646394005,4.12847,2422.2,2421.4,4.12979]
[1730646394203,4.12847,2422.2,2421.3,0.41299]
[1730646394204,4.12925,2421.8,2421.3,4.13001]
[1730646394446,4.12944,2421.7,2421.2,4.13012]
[1730646394630,4.12944,2421.7,2421.1,4.13033]
[1730646395126,4.1291,2421.9,2421.2,0.08259136]
[1730646395306,4.1291,2421.9,2421.3,4.12999]
[1730646395507,4.1291,2421.9,2421.4,0.9823]
[1730646395702,0.0044677,2422.2,2421.6,4.1295]
[1730646396013,0.0044677,2422.2,2421.8,8.25812]
[1730646396216,0.0044677,2422.2,2421.7,4.12931]
[1730646396432,0.0044677,2422.2,2421.4,8.633329]
[1730646396433,0.0044677,2422.2,2421.9,4.12898]
[1730646396941,0.0044677,2422.2,2421.9,4.12886]
[1730646397242,0.0044677,2422.2,2422.0,0.9823]
[1730646397619,4.12864,2422.1,2421.6,0.9823]
[1730646398046,4.12918,2421.8,2421.3,5.11218]
[1730646398254,4.12936,2421.7,2421.3,0.9823]
[1730646398545,4.12918,2421.8,2421.3,5.11229]
[1730646398843,4.12918,2421.8,2421.3,9.24221]
[1730646399054,8.25847,2421.8,2421.3,5.11222]
[1730646399342,5.0696777,2422.2,2421.3,5.11222]
[1730646399343,4.12898,2421.9,2421.3,0.9823]
[1730646399508,4.12898,2421.9,2421.4,4.1297]
[1730646400260,4.12898,2421.9,2421.3,5.11222]
[1730646400261,4.12929,2421.8,2421.3,5.10828681]
[1730646400852,4.12876,2422.1,2421.3,0.97836681]
[1730646401022,3.0044677,2422.2,2421.4,0.08258865]
[1730646401362,3.0044677,2422.2,2422.0,4.12873]
[1730646401363,0.0044677,2422.2,2422.0,4.12873]
[1730646402123,0.0044677,2422.2,2422.0,8.25745]
[1730646402322,0.0044677,2422.2,2422.1,4.12864]
[1730646402647,0.0044677,2422.2,2422.0,4.12872]
[1730646402814,0.0044677,2422.2,2422.0,4.541592]
[1730646403015,0.0044677,2422.2,2422.1,4.12864]
[1730646403212,0.0044677,2422.2,2422.0,5.523892]
[1730646403413,0.0044677,2422.2,2422.1,4.21120443]
[1730646403647,0.0044677,2422.2,2422.1,4.12864]
[1730646403843,0.0044677,2422.2,2422.1,5.0938932]
[1730646404362,0.0044677,2422.2,2422.1,5.17644945]
[1730646404714,0.0044677,2422.2,2422.1,5.0938932]
[1730646405012,0.0044677,2422.2,2422.0,4.12868]
[1730646405333,0.00055716,2422.2,2422.0,4.12868]
[1730646405649,0.00055716,2422.2,2421.9,4.12897]
[1730646405866,0.00055716,2422.2,2422.1,4.12864]
[1730646406149,0.00055716,2422.2,2422.0,8.25753]
[1730646406455,0.00055716,2422.2,2422.1,4.12864]
[1730646406760,0.00055716,2422.2,2421.8,4.12902]
[1730646406913,0.00055716,2422.2,2421.7,0.9223]
[1730646406914,0.00055716,2422.2,2421.7,5.05162]
[1730646407111,4.1292,2421.8,2421.4,0.9223]
[1730646407415,4.12892,2422.0,2421.4,5.052]
[1730646407617,4.12892,2422.0,2421.5,4.21222353]
[1730646407618,4.12891,2422.0,2421.5,4.21222353]
[1730646407940,8.25788,2422.0,2421.5,4.21222353]
[1730646408153,4.12891,2422.0,2421.5,4.12967]
[1730646408658,4.12891,2422.0,2421.4,5.052]
[1730646408829,4.12906,2421.9,2421.4,5.052]
[1730646409015,4.12864,2422.1,2421.4,5.052]
[1730646409211,0.00055716,2422.2,2421.6,4.12948]
[1730646409515,0.00055716,2422.2,2421.8,4.12906]
[1730646409847,0.00055716,2422.2,2422.0,4.12872]
[1730646410152,0.00055716,2422.2,2422.1,5.05094]
[1730646410337,0.00055716,2422.2,2421.8,5.05132]
[1730646410516,0.00055716,2422.2,2421.9,0.08256952]
[1730646411057,0.00055716,2422.2,2421.8,0.9223]
[1730646411267,0.00055716,2422.2,2421.7,4.1293]
[1730646411268,4.12874,2422.1,2421.7,4.1293]
[1730646411730,4.12883,2422.0,2421.5,4.12958]
[1730646412116,4.12883,2422.0,2421.6,4.21205144]
[1730646412772,4.12918,2421.8,2421.4,0.9223]
[1730646413056,4.12918,2421.8,2421.4,5.05212]
[1730646413222,8.25845,2421.8,2421.4,0.9223]
[1730646413430,8.25845,2421.8,2421.2,4.13003]
[1730646413431,4.12918,2421.8,2421.2,4.13003]
[1730646413616,4.12867,2422.1,2421.0,0.9223]
[1730646413617,4.12993,2421.4,2421.0,0.9223]
[1730646413819,4.12993,2421.4,2421.0,5.05279]
[1730646414541,4.12993,2421.4,2421.0,0.9223]
[1730646415061,4.12993,2421.4,2420.7,4.13092]
[1730646415062,4.12993,2421.4,2420.8,4.13084]
[1730646415063,4.13012,2421.3,2420.8,4.13084]
[1730646415309,4.1296,2421.6,2421.0,4.13044]
[1730646415412,4.12967,2421.5,2421.0,4.13044]
[1730646416119,4.1296,2421.6,2421.0,4.13043]
[1730646416528,0.95,2421.7,2421.1,4.13027]
[1730646416729,4.1295,2421.6,2421.0,4.13043]
[1730646416948,0.95,2421.7,2420.9,4.13068]
[1730646417166,4.13021,2421.2,2420.7,4.13094]
[1730646417538,4.13038,2421.1,2420.7,4.13094]
[1730646417728,4.13021,2421.2,2420.7,4.13094]
[1730646417948,4.1307,2420.9,2420.6,0.9223]
[1730646418661,4.13046,2421.1,2420.6,0.9223]
[1730646418818,7.97622052,2421.5,2420.7,0.08261799]
[1730646418819,3.0,2421.5,2420.7,0.08261799]
[1730646419017,3.0,2421.5,2420.6,5.05342]
[1730646419018,4.12967,2421.5,2420.6,5.05342]
[1730646419213,4.13043,2421.1,2420.6,5.05342]
[1730646419458,4.13066,2421.0,2420.6,0.9223]
[1730646419660,4.13099,2420.8,2420.3,4.13171]
[1730646420056,0.95,2421.1,2420.3,4.13171]
[1730646420057,4.13106,2420.7,2420.3,4.13171]
[1730646420430,0.95,2421.1,2420.4,4.21416147]
[1730646420630,12.13007,2421.3,2420.5,4.13134]
[1730646420840,12.13007,2421.3,2420.6,4.21369352]
[1730646420841,4.13007,2421.3,2420.6,4.21369352]
[1730646421024,4.13005,2421.3,2420.7,1.0217]
[1730646421231,4.13005,2421.3,2420.7,5.23532353]
[1730646421425,4.97595052,2421.7,2421.2,4.13017]
[1730646421626,4.12944,2421.7,2421.0,4.13041]
[1730646421867,4.12944,2421.7,2421.2,4.13001]
[1730646422033,4.12944,2421.7,2421.3,1.0217]
[1730646422034,4.12961,2421.6,2421.3,1.0217]
[1730646422364,4.12981,2421.5,2421.0,1.0217]
[1730646422668,0.84651052,2421.9,2421.5,4.12954]
[1730646422903,4.12894,2422.0,2421.6,1.0217]
[1730646423110,4.12891,2422.0,2421.6,1.0217]
[1730646423255,5.84651052,2422.2,2421.3,4.12991]
[1730646423256,4.1293,2421.8,2421.3,4.12999]
[1730646423752,0.84651052,2422.1,2421.4,4.2123286]
[1730646423753,4.12878,2422.1,2421.4,4.2123286]
[1730646423957,5.84651052,2422.2,2421.2,1.0217]
[1730646423958,5.84651052,2422.2,2421.2,5.15176]
[1730646424215,4.12967,2421.5,2421.2,1.0217]
[1730646424360,4.13028,2421.2,2420.7,4.13093]
[1730646424565,5.82203105,2421.9,2421.4,4.12968]
[1730646424566,0.84651052,2421.8,2421.4,4.12968]
[1730646424778,4.12859,2422.2,2421.7,4.1292]
[1730646424779,9.10369052,2422.2,2421.7,4.1292]
[1730646425093,4.1287,2422.1,2421.6,4.12944]
[1730646425296,4.12859,2422.2,2421.6,4.12944]
[1730646425510,8.24786,2422.6,2421.6,4.12944]
[1730646425511,1.71095209,2423.3,2423.2,4.67677]
[1730646425818,2.19865438,2423.4,2423.2,4.67677]
[1730646425819,0.05996426,2423.4,2423.2,0.0698]
[1730646427548,5.63373117,2423.3,2423.2,0.0698]
[1730646427902,8.63373117,2423.3,2423.2,0.0698]
[1730646428021,8.64373117,2423.3,2423.2,0.0698]
[1730646428209,7.1266,2423.3,2423.2,0.0698]
[1730646428406,8.6448,2423.3,2423.2,0.0698]
[1730646429141,8.6348,2423.3,2423.2,0.0698]
[1730646430641,4.18640426,2423.4,2423.2,0.0698]
[1730646431249,0.05996426,2423.4,2423.2,0.0698]
[1730646431433,4.18645426,2423.4,2423.2,0.0698]
[1730646431633,4.18645426,2423.4,2422.8,0.9589]
[1730646431634,0.05996426,2423.4,2422.8,0.9589]
[1730646432229,0.05996426,2423.4,2422.7,4.12747]
[1730646432230,4.1267,2423.3,2422.5,4.12789]
[1730646432435,4.1267,2423.3,2422.6,4.12775]
[1730646432678,3.05996426,2423.4,2422.8,4.12741]
[1730646432882,3.05996426,2423.4,2422.6,5.049114]
[1730646433265,2.34659337,2423.4,2422.7,4.12748]
[1730646433438,4.1839371,2424.6,2424.0,4.12539]
[1730646433439,0.0594071,2424.6,2424.0,4.12539]
[1730646433637,0.0594071,2424.6,2423.8,4.12563]
[1730646433839,4.12509,2424.2,2423.6,5.08491]
[1730646434073,0.0594071,2424.6,2423.6,0.9589]
[1730646434074,4.12529,2424.1,2423.6,0.9589]
[1730646434371,5.08388,2423.9,2423.2,4.12667]
[1730646434765,9.20963,2423.9,2423.2,4.12665]
[1730646435077,4.12581,2423.8,2423.2,4.12665]
[1730646435439,0.55,2424.0,2423.5,4.12624]
[1730646435639,4.12527,2424.1,2423.5,4.12626]
[1730646435886,4.1256,2423.9,2423.2,4.12663]
[1730646436170,4.1256,2423.9,2423.3,4.12646]
[1730646436338,4.1256,2423.9,2423.2,4.12663]
[1730646436535,4.1256,2423.9,2423.0,4.12697]
[1730646436745,4.126,2423.7,2422.9,0.9589]
[1730646437075,4.126,2423.7,2423.1,4.12692]
[1730646437277,4.6761,2423.6,2423.0,4.12701]
[1730646437437,4.12628,2423.5,2422.9,0.9589]
[1730646437634,3.55,2423.6,2422.9,0.9589]
[1730646437990,4.12657,2423.4,2422.9,0.9589]
[1730646438190,8.803,2423.4,2422.8,4.12742]
[1730646438503,1.0107,2423.5,2422.9,4.12717]
[1730646438707,3.0,2423.7,2423.1,4.12688]
[1730646439011,4.12621,2423.6,2422.9,4.12718]
[1730646439308,4.12621,2423.6,2423.0,4.12707]
[1730646439512,4.12621,2423.6,2422.9,4.12718]
[1730646439811,1.0107,2424.2,2423.3,0.9383]
[1730646440008,4.12624,2423.6,2423.0,4.12699]
[1730646440308,4.12628,2423.5,2423.0,4.12699]
[1730646440490,4.12628,2423.5,2422.8,5.06565]
[1730646440681,4.12602,2423.7,2423.0,4.1271]
[1730646440887,4.12602,2423.7,2423.0,4.12701]
[1730646441276,4.12602,2423.7,2423.1,4.12678]
[1730646441571,4.12602,2423.7,2423.0,4.12701]
[1730646441572,4.12602,2423.7,2423.2,4.12675]
[1730646441870,8.25063,2424.1,2423.2,0.825376]
[1730646442073,1.0107,2424.2,2422.8,3.9383]
[1730646442276,5.13586,2424.2,2423.6,4.12609]
[1730646442909,4.125,2424.3,2423.8,4.12574]
[1730646443121,4.125,2424.3,2423.6,4.12598]
[1730646443630,4.12517,2424.2,2423.5,0.9383]
[1730646443919,4.12542,2424.0,2423.4,4.12633]
[1730646444272,4.12567,2423.9,2423.3,0.9383]
[1730646444472,4.67585,2423.8,2423.2,4.12668]
[1730646444673,4.67585,2423.8,2423.1,1.02082262]
[1730646444674,0.55,2423.8,2423.3,4.12646]
[1730646444883,4.12569,2423.9,2423.3,4.12646]
[1730646444884,4.12569,2423.9,2423.4,4.12632]
[1730646445206,4.12569,2423.9,2423.3,4.12646]
[1730646445207,4.12577,2423.8,2423.3,4.12646]
[1730646445409,4.12569,2423.9,2423.3,4.12646]
[1730646445626,4.125,2424.3,2423.4,0.08252494]
[1730646445827,5.0,2424.4,2423.5,4.12617]
[1730646445828,8.2507,2424.1,2423.5,4.12617]
[1730646446130,6.0107,2424.4,2423.4,4.12642]
[1730646446131,8.80093,2424.0,2423.4,4.12643]
[1730646446282,4.1256,2423.9,2423.4,4.12643]
[1730646446487,4.12577,2423.8,2423.3,4.12658]
[1730646446682,4.12577,2423.8,2423.1,0.9383]
[1730646446683,4.67543,2424.0,2423.4,4.12638]
[1730646446927,4.67543,2424.0,2423.4,8.25272]
[1730646447096,4.67543,2424.0,2423.4,4.12634]
[1730646447427,4.67543,2424.0,2423.4,4.12633]
[1730646447624,4.12559,2423.9,2423.4,4.12633]
[1730646447983,4.67543,2424.0,2423.4,8.25264]
[1730646448225,4.67543,2424.0,2423.4,4.12631]
[1730646448629,4.67543,2424.0,2423.1,0.9383]
[1730646448630,4.12516,2424.2,2423.6,4.12609]
[1730646448813,4.12516,2424.2,2423.6,4.12597]
[1730646449015,4.12516,2424.2,2423.7,4.12588]
[1730646449424,0.55,2424.3,2423.8,4.12566]
[1730646449626,4.1838671,2424.6,2423.9,4.12541]
[1730646449938,4.12456,2424.5,2423.9,4.12541]
[1730646450133,4.1838671,2424.6,2423.9,4.12541]
[1730646450305,4.1838671,2424.6,2424.0,4.12529]
[1730646450511,4.1838671,2424.6,2423.7,0.9383]
[1730646450512,4.12518,2424.2,2423.7,0.9383]
[1730646450706,0.0594071,2424.6,2423.4,0.9556]
[1730646450707,4.12557,2424.0,2423.4,0.9556]
[1730646451160,4.12606,2423.7,2423.1,4.12683]
[1730646451310,4.12606,2423.7,2423.1,5.08243]
[1730646451510,4.12606,2423.7,2423.2,4.12677]
[1730646451749,5.07544,2424.2,2423.3,4.12648]
[1730646451750,4.67563,2423.9,2423.3,4.12648]
[1730646451927,4.12577,2423.8,2423.2,4.12667]
[1730646452259,0.55,2423.7,2423.2,4.12668]
[1730646452610,0.55,2423.7,2423.2,4.12667]
[1730646452815,4.67597,2423.7,2423.2,4.12667]
[1730646453020,5.0,2424.1,2422.9,4.12723]
[1730646453021,0.55,2423.9,2422.9,4.12723]
[1730646453315,4.12645,2423.4,2422.9,4.12723]
[1730646453636,4.12689,2423.2,2422.7,0.9556]
[1730646453936,0.55,2423.3,2422.7,0.9556]
[1730646454113,4.6766,2423.3,2422.8,4.12734]
[1730646454758,4.12644,2423.4,2422.8,5.048358]
[1730646455111,4.1262,2423.6,2422.9,4.12716]
[1730646455349,4.12635,2423.5,2422.9,8.25433]
[1730646455512,4.12585,2423.8,2423.3,4.12654]
[1730646455717,0.9503,2423.9,2423.3,4.12654]
[1730646455915,0.9503,2423.9,2423.5,4.1261]
[1730646456163,5.01,2424.4,2423.5,4.1261]
[1730646456164,4.1249,2424.3,2423.5,4.12622]
[1730646456461,4.12534,2424.1,2423.5,4.12617]
[1730646456624,4.12543,2424.0,2423.5,4.12617]
[1730646456842,8.25099,2424.0,2423.5,4.12617]
[1730646457059,8.25093,2424.0,2423.5,4.12617]
[1730646457270,4.12561,2423.9,2423.4,5.08199]
[1730646457446,4.12543,2424.0,2423.5,4.12616]
[1730646457989,10.07505,2424.4,2423.6,4.12594]
[1730646457990,4.12519,2424.2,2423.6,4.12594]
[1730646458280,4.12519,2424.2,2423.7,4.12579]
[1730646458435,4.12525,2424.1,2423.6,4.12609]
[1730646459074,4.67552,2424.0,2423.4,4.12632]
[1730646459432,3.55,2424.2,2423.3,4.12652]
[1730646459732,3.55,2424.2,2422.8,8.048408]
[1730646459733,4.12669,2423.3,2422.8,4.12738]
[1730646459931,4.12712,2423.0,2422.7,0.9556]
[1730646460140,4.12687,2423.2,2422.7,5.0832]
[1730646460539,4.12687,2423.2,2422.7,0.9556]
[1730646460936,4.12689,2423.2,2422.7,5.0832]
[1730646461133,4.12689,2423.2,2422.7,0.9556]
[1730646461339,4.12689,2423.2,2422.7,5.08321]
[1730646462079,4.12677,2423.2,2422.7,5.591441]
[1730646462229,4.12639,2423.5,2422.8,4.12729]
[1730646462434,4.12648,2423.4,2422.9,4.12719]
[1730646462755,4.12648,2423.4,2422.8,4.12729]
[1730646463437,0.55,2423.5,2422.9,4.12728]
[1730646463630,4.12653,2423.4,2422.9,4.12728]
[1730646464069,3.0,2423.5,2422.9,4.12728]
[1730646464606,4.12644,2423.4,2422.8,4.12733]
[1730646464890,4.12644,2423.4,2422.7,1.463921]
[1730646464891,4.12694,2423.2,2422.7,0.9556]
[1730646465052,4.12688,2423.2,2422.7,0.9556]
[1730646465259,4.12688,2423.2,2422.7,5.08322]
[1730646465791,4.12688,2423.2,2422.7,0.9556]
[1730646465956,0.55,2423.3,2422.7,0.9556]
[1730646466155,7.12627,2423.5,2422.9,4.12717]
[1730646466390,0.55,2423.4,2422.9,4.12717]
[1730646466584,4.67645,2423.4,2422.9,4.12717]
[1730646466787,5.07622,2423.7,2423.0,4.12701]
[1730646466953,4.12546,2424.0,2423.4,4.12641]
[1730646467166,1.1473,2424.1,2423.6,4.12606]
[1730646467476,1.1473,2424.1,2423.4,5.31703]
[1730646467477,4.1256,2423.9,2423.4,5.31703]
[1730646467881,4.12494,2424.3,2423.7,4.1258]
[1730646468051,4.12494,2424.3,2423.5,0.08252345]
[1730646468052,4.12494,2424.3,2423.5,0.08251459]
[1730646468255,3.0,2424.2,2423.8,4.12575]
[1730646468705,4.23465,2424.5,2424.0,4.1254]
[1730646468852,0.11,2424.5,2424.3,4.12478]
[1730646469196,0.11,2424.5,2424.1,9.44097]
[1730646469398,0.11,2424.5,2424.1,5.31583]
[1730646469573,0.11,2424.5,2424.2,4.12507]
[1730646469893,4.23458,2424.5,2424.1,5.31583]
[1730646470087,0.11,2424.5,2424.1,4.12513]
[1730646470308,4.23458,2424.5,2424.1,4.12513]
[1730646470498,4.23458,2424.5,2423.9,4.12546]
[1730646470653,0.11,2424.5,2423.8,1.1907]
[1730646470850,0.11,2424.5,2424.1,4.12507]
[1730646471349,0.11,2424.5,2423.9,4.12547]
[1730646471350,4.23457,2424.5,2423.9,4.12547]
[1730646471553,4.23457,2424.5,2423.8,1.1907]
[1730646471554,0.11,2424.5,2424.0,4.1254]
[1730646471761,4.12473,2424.4,2424.0,4.1254]
[1730646471956,0.11,2424.5,2424.1,4.12512]
[1730646472170,0.11,2424.5,2424.2,4.125]
[1730646472372,0.11,2424.5,2424.1,4.12512]
[1730646473599,0.11,2424.5,2424.1,4.12514]
[1730646474098,4.12456,2424.5,2424.0,4.1253]
[1730646474609,4.12517,2424.2,2423.5,1.1907]
[1730646474914,4.1255,2424.0,2423.5,5.31681]
[1730646475059,4.1255,2424.0,2423.3,4.12649]
[1730646475417,5.27258,2424.1,2423.4,4.1263]
[1730646475713,4.12541,2424.0,2423.4,4.1263]
[1730646475914,4.12566,2423.9,2423.4,4.1263]
[1730646476086,4.12541,2424.0,2423.4,4.12629]
[1730646476414,8.25096,2424.0,2423.4,8.25262]
[1730646476611,4.12541,2424.0,2423.4,4.12629]
[1730646476916,4.12563,2423.9,2423.4,4.12629]
[1730646477471,4.12541,2424.0,2423.4,4.12629]
[1730646477668,4.12558,2423.9,2423.4,4.12628]
[1730646478070,4.12558,2423.9,2423.3,4.12657]
[1730646478071,4.12587,2423.8,2423.3,4.12657]
[1730646478708,4.12558,2423.9,2423.4,4.1264]
[1730646479206,4.67542,2424.0,2423.5,4.12625]
[1730646479606,4.67542,2424.0,2423.4,4.12634]
[1730646479607,4.12568,2423.9,2423.4,4.12634]
[1730646480117,3.55,2424.0,2423.2,6.74492799]
[1730646480273,0.55,2424.0,2423.2,6.74492799]
[1730646480472,8.25214,2423.7,2423.2,6.74490799]
[1730646480712,4.1261,2423.6,2423.2,6.74490799]
[1730646481014,4.1262,2423.6,2423.2,1.42752799]
[1730646481172,4.12596,2423.7,2423.0,1.1253]
[1730646481373,4.1257,2423.9,2423.4,4.12635]
[1730646481610,0.55,2424.0,2423.1,0.79676136]
[1730646481611,0.55,2424.0,2423.3,4.12643]
[1730646481905,4.12566,2423.9,2423.4,4.12634]
[1730646482374,1.1473,2424.1,2423.8,4.12572]
[1730646482604,4.12542,2424.0,2423.6,5.25139]
[1730646482816,5.21903,2424.4,2423.6,1.1253]
[1730646483066,0.1694071,2424.6,2424.2,4.12507]
[1730646483414,0.1694071,2424.6,2424.3,4.12489]
[1730646483734,0.1694071,2424.6,2424.5,4.12456]
[1730646484480,0.1694071,2424.6,2424.5,4.20704595]
[1730646484998,0.1694071,2424.6,2424.4,4.12464]
[1730646485312,0.1694071,2424.6,2424.3,0.937526]
[1730646485472,0.1694071,2424.6,2424.2,4.12496]
[1730646485915,0.1694071,2424.6,2424.4,4.1247]
[1730646486116,0.1694071,2424.6,2424.2,4.12504]
[1730646486480,0.1694071,2424.6,2424.3,4.12489]
[1730646486722,0.1694071,2424.6,2424.3,4.20737931]
[1730646486917,0.1694071,2424.6,2424.4,0.42073793]
[1730646488198,0.1694071,2424.6,2424.1,1.1253]
[1730646488514,8.4183971,2424.6,2424.1,5.25053]
[1730646489192,4.12456,2424.5,2424.1,1.1253]
[1730646489391,4.2938871,2424.6,2424.1,5.25054]
[1730646489593,4.2938871,2424.6,2424.1,1.1253]
[1730646489994,4.2938871,2424.6,2424.1,5.2505]
[1730646490181,4.2939371,2424.6,2424.1,2.07112354]
[1730646490382,4.12466,2424.5,2423.9,4.12555]
[1730646490587,4.12474,2424.4,2423.9,4.12555]
[1730646490890,8.24995,2424.3,2423.8,5.2509]
[1730646491103,4.12492,2424.3,2423.9,0.08250183]
[1730646491318,1.2636071,2424.6,2423.9,0.08250183]
[1730646491520,1.2636071,2424.6,2423.5,1.1253]
[1730646491521,4.67456,2424.5,2423.5,1.1253]
[1730646491831,4.12587,2423.8,2423.3,4.12658]
[1730646492133,4.12587,2423.8,2423.2,5.25195]
[1730646492287,4.12593,2423.7,2423.2,5.25195]
[1730646492818,4.12632,2423.5,2423.0,4.127]
[1730646493134,4.12632,2423.5,2422.7,1.633637]
[1730646493135,4.12651,2423.4,2422.9,4.1272]
[1730646493298,8.25274,2423.5,2423.0,0.41272]
[1730646493697,4.12634,2423.5,2422.8,4.12745]
[1730646493912,4.12656,2423.4,2422.8,4.12745]
[1730646494111,4.12663,2423.3,2422.7,5.761137]
[1730646494530,4.12663,2423.3,2422.8,4.12734]
[1730646494531,8.25337,2423.3,2422.8,4.12734]
[1730646494730,4.12663,2423.3,2422.8,4.12734]
[1730646495029,4.12663,2423.3,2422.9,4.7033777]
[1730646495230,4.12663,2423.3,2422.9,0.5760977]
[1730646495751,4.12663,2423.3,2422.9,4.7033677]
[1730646496121,4.12663,2423.3,2422.9,0.5760977]
[1730646496328,4.12576,2423.8,2422.7,1.1253]
[1730646496329,4.12704,2423.1,2422.7,1.1253]
[1730646496648,4.12704,2423.1,2422.7,5.25289]
[1730646497004,0.55,2423.2,2422.7,5.25289]
[1730646497248,4.12697,2423.1,2422.7,1.20784204]
[1730646497421,4.67677,2423.2,2422.8,0.5335512]
[1730646497822,4.12699,2423.1,2422.8,0.5335512]
[1730646498072,4.1273,2422.9,2422.4,8.2561]
[1730646498236,4.1273,2422.9,2422.4,9.3811]
[1730646498621,4.12711,2423.0,2422.5,4.12786]
[1730646498953,0.55,2422.9,2422.5,4.12786]
[1730646499168,0.55,2422.9,2422.5,4.21040952]
[1730646499322,0.55,2423.0,2422.6,4.12778]
[1730646499523,0.55,2423.0,2422.5,0.94634495]
[1730646499839,4.12699,2423.1,2422.6,4.12764]
[1730646500154,4.12725,2423.0,2422.5,5.07430495]
[1730646500311,4.12699,2423.1,2422.5,5.07419495]
[1730646500512,4.12699,2423.1,2422.6,0.70246604]
[1730646500718,4.12699,2423.1,2422.6,4.83025604]
[1730646501464,4.12699,2423.1,2422.6,0.70246604]
[1730646501612,4.12738,2422.9,2422.4,5.25312]
[1730646501830,0.55,2423.3,2422.5,4.12785]
[1730646502183,0.55,2423.0,2422.5,4.21040086]
[1730646502352,0.55,2423.0,2422.5,4.74394095]
[1730646502874,0.55,2423.0,2422.5,0.61609095]
[1730646503084,0.55,2423.2,2422.6,4.12779]
[1730646503249,0.55,2423.2,2422.8,4.12742]
[1730646503835,0.55,2423.2,2422.7,4.12761]
[1730646504082,4.12677,2423.2,2422.4,1.125]
[1730646504382,4.12796,2422.5,2421.9,1.125]
[1730646504680,4.12796,2422.5,2422.0,8.88981282]
[1730646504848,4.12814,2422.4,2422.0,4.76108282]
[1730646505192,8.25568,2422.6,2422.0,4.76108282]
[1730646505472,8.25568,2422.6,2422.1,4.12856]
[1730646505473,4.1278,2422.6,2422.1,4.12856]
[1730646505832,4.1278,2422.6,2422.0,4.76108282]
[1730646505833,4.12814,2422.4,2422.0,4.76108282]
[1730646506033,4.12854,2422.2,2421.9,1.125]